fUST/lending_fUST_20251021
["ID","MTS","AMOUNT","RATE_DAILY","PERIOD"]
[391912977,1760979042099,-277.831891,0.00027,7]
[391912978,1760979042109,-654.203764,0.00027,7]
[391912979,1760979042119,-1553.048247,0.00027,7]
[391912980,1760979042129,-277.831891,0.00027,7]
[391912981,1760979042138,-1553.048247,0.00027,7]
[391912982,1760979042148,-151.0,0.00027,7]
[391912983,1760979042157,-151.0,0.00027,7]
[391912984,1760979042167,-277.831891,0.00027,7]
[391912985,1760979042177,-151.0,0.00027,7]
[391912986,1760979042186,-151.0,0.00027,7]
[391912987,1760979042196,-151.0,0.00027,7]
[391912988,1760979042205,-277.831891,0.00027,7]
[391912989,1760979042214,-151.0,0.00027,7]
[391912990,1760979042223,-151.90501,0.00027,7]
[391912991,1760979042232,-151.0,0.00027,7]
[391912992,1760979042245,-151.0,0.00027,7]
[391912993,1760979042256,-151.0,0.00027,7]
[391912994,1760979042270,-370.346706,0.00027,7]
[391912995,1760979042280,-151.0,0.00027,7]
[391912996,1760979042288,-370.346706,0.00027,7]
[391912997,1760979042298,-370.346706,0.00027,7]
[391912998,1760979042309,-370.346706,0.00027,7]
[391912999,1760979042318,-152.547343,0.00027,7]
[391913000,1760979042328,-151.0,0.00027,7]
[391913001,1760979042338,-151.0,0.00027,7]
[391913002,1760979042349,-509.356734,0.00027,7]
[391913003,1760979042359,-151.0,0.00027,7]
[391913004,1760979042369,-509.356734,0.00027,7]
[391913005,1760979042379,-509.356734,0.00027,7]
[391913006,1760979042388,-509.356734,0.00027,7]
[391913007,1760979042399,-179.296642,0.00027,7]
[391913008,1760979042408,-179.296642,0.00027,7]
[391913009,1760979042418,-179.296642,0.00027,7]
[391913010,1760979042427,-179.296642,0.00027,7]
[391913011,1760979042436,-402.9601108,0.00027,3]
[391913012,1760979042446,-151.0,0.00027,7]
[391913013,1760979042455,-402.9601108,0.00027,7]
[391913014,1760979042465,-196.021693,0.00027,7]
[391913015,1760979042477,-196.021693,0.00027,7]
[391913016,1760979042487,-196.021693,0.00027,7]
[391913017,1760979042498,-196.021693,0.00027,7]
[391913018,1760979042511,-186.281692,0.00027,7]
[391913019,1760979042522,-1272.595582,0.00027,7]
[391913020,1760979042531,-1272.595582,0.00027,7]
[391913021,1760979042541,-250.06454488,0.00027,7]
[391913022,1760979042552,-1272.595582,0.00027,7]
[391913023,1760979042563,-151.0,0.00027,7]
[391913024,1760979042573,-1272.595582,0.00027,7]
[391913025,1760979042583,-151.0,0.00027,7]
[391913026,1760979042592,-151.0,0.00027,7]
[391913027,1760979042602,-151.0,0.00027,7]
[391913028,1760979042613,-151.0,0.00027,7]
[391913029,1760979042622,-151.0,0.00027,7]
[391913030,1760979042631,-151.0,0.00027,7]
[391913031,1760979042642,-1521.602699,0.00027,7]
[391913032,1760979042653,-1521.602699,0.00027,7]
[391913033,1760979042664,-1521.602699,0.00027,7]
[391913034,1760979042674,-1521.602699,0.00027,7]
[391913035,1760979042684,-151.0,0.00027,7]
[391913036,1760979042693,-151.0,0.00027,7]
[391913037,1760979042704,-151.0,0.00027,7]
[391913038,1760979042714,-151.0,0.00027,7]
[391913039,1760979042724,-151.0,0.00027,7]
[391913040,1760979042735,-151.0,0.00027,7]
[391913041,1760979042745,-151.0,0.00027,7]
[391913042,1760979042755,-151.0,0.00027,7]
[391913043,1760979042766,-151.0,0.00027,7]
[391913044,1760979042776,-310.336325,0.00027,7]
[391913045,1760979042786,-151.0,0.00027,7]
[391913046,1760979042797,-151.0,0.00027,7]
[391913047,1760979042806,-310.336325,0.00027,7]
[391913048,1760979042815,-61010.37444917,0.00027,3]
[391913049,1760979042826,-310.336325,0.00027,7]
[391913050,1760979042835,-310.336325,0.00027,7]
[391913051,1760979042845,-151.0,0.00027,7]
[391913052,1760979042854,-177.753116,0.00027,7]
[391913053,1760979042864,-286.876082,0.00027,7]
[391913054,1760979042873,-177.753116,0.00027,7]
[391913055,1760979042882,-286.876082,0.00027,7]
[391913056,1760979042892,-177.753116,0.00027,7]
[391913057,1760979042903,-286.876082,0.00027,7]
[391913058,1760979042912,-177.753116,0.00027,7]
[391913059,1760979042921,-295.593934,0.00027,7]
[391913060,1760979042931,-151.0,0.00027,7]
[391913061,1760979042942,-295.593934,0.00027,7]
[391913062,1760979042951,-286.876082,0.00027,7]
[391913063,1760979042963,-211.958132,0.00027,7]
[391913064,1760979042972,-211.958132,0.00027,7]
[391913065,1760979042990,-151.0,0.00027,7]
[391913066,1760979043000,-295.593934,0.00027,7]
[391913067,1760979043010,-211.958132,0.00027,7]
[391913068,1760979043020,-153.581276,0.00027,7]
[391913069,1760979043030,-151.0,0.00027,7]
[391913070,1760979043042,-295.593934,0.00027,7]
[391913071,1760979043051,-151.0,0.00027,7]
[391913072,1760979043068,-151.0,0.00027,7]
[391913073,1760979043079,-211.958132,0.00027,7]
[391913074,1760979043089,-500.0,0.0002702,7]
[391913075,1760979043098,-261.0,0.00027075,7]
[391913077,1760979043107,-268.1138732,0.0002717,2]
[391913078,1760979043116,-217.0,0.00027226,2]
[391913079,1760979043126,-867.0,0.00027344,2]
[391913081,1760979043137,-720.0,0.00027358,30]
[391913082,1760979043146,-151.0,0.00027397,30]
[391913083,1760979043157,-154.08754,0.00027397,30]
[391913085,1760979043166,-154.08754,0.00027397,30]
[391913093,1760979043331,-154.08754,0.00027397,30]
[391913094,1760979043367,-154.08754,0.00027397,30]
[391913095,1760979043378,-151.782599,0.00027397,30]
[391913096,1760979043388,-2497.34,0.000274,2]
[391913097,1760979043399,-565.45,0.0002746,2]
[391913098,1760979043408,-460.0,0.00027469,2]
[391913099,1760979043417,-201.36352564,0.00027495,2]
[391913100,1760979043428,-13543.35366489,0.000275,2]
[391913101,1760979043438,-500.0,0.00027521,5]
[391913102,1760979043449,-1000.0,0.00027521,5]
[391913103,1760979043460,-402.9601108,0.00027577,2]
[391913104,1760979043471,-160.0,0.00027577,2]
[391913106,1760979043481,-160.0,0.00027577,2]
[391913108,1760979043490,-217.0,0.00027642,7]
[391913110,1760979043500,-867.0,0.00027648,2]
[391913112,1760979043510,-291.09506234,0.0002777,2]
[391913113,1760979043521,-199.99999901,0.000278,2]
[391913114,1760979043532,-402.9601108,0.000278,3]
[391913115,1760979043543,-217.0,0.00027917,2]
[391913116,1760979043555,-461.897,0.00027935,18]
[391913117,1760979043564,-1471.17081629,0.0002796,5]
[391913118,1760979043574,-1207.76835103,0.0002796,5]
[391913119,1760979043584,-5878.79858189,0.0002796,5]
[391913120,1760979043594,-279.4999211,0.00027998,2]
[391913121,1760979043604,-560.0,0.00028017,2]
[391913122,1760979043615,-1500.0,0.00028068,5]
[391913123,1760979043625,-217.0,0.0002811,2]
[391913125,1760979043635,-12202.07,0.000282,4]
[391913126,1760979043645,-867.0,0.00028242,2]
[391913128,1760979043654,-246.0,0.00028296,7]
[391913130,1760979043664,-314.07625147,0.0002837,2]
[391913132,1760979043674,-636.13,0.00028441,2]
[391913133,1760979043684,-150.0,0.00028473,5]
[391913135,1760979043693,-150.0,0.00028473,5]
[391913136,1760979043703,-250.0,0.00028473,5]
[391913138,1760979043712,-104533.54639617,0.000285,7]
[391913139,1760979043721,-15076.15,0.000285,7]
[391913140,1760979043730,-151.0,0.000285,30]
[391913141,1760979043740,-151.0,0.000285,30]
[391913143,1760979043749,-151.0,0.000285,30]
[391913144,1760979043759,-151.0,0.000285,30]
[391913145,1760979043768,-151.0,0.000285,30]
[391913146,1760979043779,-200.400339,0.000285,30]
[391913147,1760979043788,-200.400339,0.000285,30]
[391913148,1760979043798,-151.0,0.000285,30]
[391913150,1760979043808,-151.0,0.000285,30]
[391913151,1760979043818,-151.0,0.000285,30]
[391913152,1760979043828,-181.355164,0.000285,30]
[391913153,1760979043838,-205.28185,0.000285,30]
[391913154,1760979043847,-205.28185,0.000285,30]
[391913155,1760979043857,-151.0,0.000285,30]
[391913156,1760979043866,-151.0,0.000285,30]
[391913157,1760979043876,-151.0,0.000285,30]
[391913158,1760979043886,-205.28185,0.000285,30]
[391913159,1760979043897,-151.0,0.000285,30]
[391913160,1760979043907,-205.28185,0.000285,30]
[391913161,1760979043916,-151.0,0.000285,30]
[391913162,1760979043926,-166.540274,0.000285,30]
[391913163,1760979043935,-166.540274,0.000285,30]
[391913164,1760979043945,-166.540274,0.000285,30]
[391913165,1760979043955,-166.540274,0.000285,30]
[391913166,1760979043964,-151.0,0.000285,30]
[391913167,1760979043974,-151.0,0.000285,30]
[391913168,1760979043984,-151.0,0.000285,30]
[391913169,1760979043993,-153.973046,0.000285,30]
[391913170,1760979044003,-535.194147,0.000285,30]
[391913171,1760979044014,-151.0,0.000285,30]
[391913172,1760979044026,-535.194147,0.000285,30]
[391913173,1760979044041,-535.194147,0.000285,30]
[391913175,1760979044051,-535.194147,0.000285,30]
[391913176,1760979044064,-253.983329,0.000285,7]
[391913177,1760979044074,-253.983329,0.000285,7]
[391913178,1760979044084,-253.983329,0.000285,7]
[391913179,1760979044093,-253.983329,0.000285,7]
[391913181,1760979044104,-453.367066,0.000285,30]
[391913182,1760979044115,-453.367066,0.000285,30]
[391913183,1760979044126,-453.367066,0.000285,30]
[391913184,1760979044139,-453.367066,0.000285,30]
[391913185,1760979044150,-152.424338,0.000285,30]
[391913186,1760979044160,-151.0,0.000285,30]
[391913187,1760979044170,-151.0,0.000285,30]
[391913188,1760979044180,-151.0,0.000285,30]
[391913189,1760979044189,-204.294519,0.000285,30]
[391913190,1760979044199,-204.294519,0.000285,30]
[391913191,1760979044209,-151.0,0.000285,30]
[391913192,1760979044219,-204.294519,0.000285,30]
[391913193,1760979044229,-204.294519,0.000285,30]
[391913194,1760979044239,-151.0,0.000285,30]
[391913195,1760979044249,-151.0,0.000285,30]
[391913196,1760979044259,-151.0,0.000285,30]
[391913197,1760979044269,-151.0,0.000285,30]
[391913198,1760979044279,-151.0,0.000285,30]
[391913199,1760979044288,-235.619447,0.000285,30]
[391913200,1760979044298,-235.619447,0.000285,30]
[391913201,1760979044307,-261.384855,0.000285,30]
[391913202,1760979044317,-235.619447,0.000285,30]
[391913203,1760979044327,-261.384855,0.000285,30]
[391913204,1760979044336,-235.619447,0.000285,30]
[391913205,1760979044345,-261.384855,0.000285,30]
[391913206,1760979044355,-261.384855,0.000285,30]
[391913207,1760979044368,-799.886058,0.000285,30]
[391913208,1760979044379,-799.886058,0.000285,30]
[391913209,1760979044390,-233.656997,0.000285,30]
[391913210,1760979044399,-799.886058,0.000285,30]
[391913211,1760979044409,-233.656997,0.000285,30]
[391913212,1760979044420,-799.886058,0.000285,30]
[391913213,1760979044430,-233.656997,0.000285,30]
[391913214,1760979044439,-187.798514,0.000285,30]
[391913215,1760979044449,-233.656997,0.000285,30]
[391913216,1760979044459,-187.798514,0.000285,30]
[391913217,1760979044471,-187.798514,0.000285,30]
[391913218,1760979044482,-187.798514,0.000285,30]
[391913219,1760979044492,-151.0,0.000285,30]
[391913220,1760979044502,-151.0,0.000285,30]
[391913221,1760979044512,-153.329086,0.000285,30]
[391913222,1760979044521,-157.233478,0.000285,30]
[391913223,1760979044531,-151.0,0.000285,2]
[391913224,1760979044541,-157.233478,0.000285,30]
[391913225,1760979044551,-151.0,0.000285,2]
[391913226,1760979044561,-157.233478,0.000285,30]
[391913227,1760979044572,-151.0,0.000285,30]
[391913228,1760979044581,-157.233478,0.000285,30]
[391913229,1760979044591,-151.0,0.000285,2]
[391913230,1760979044600,-151.0,0.000285,2]
[391913231,1760979044609,-1188.789684,0.000285,30]
[391913232,1760979044619,-1188.789684,0.000285,30]
[391913233,1760979044631,-1188.789684,0.000285,30]
[391913234,1760979044641,-1188.789684,0.000285,30]
[391913235,1760979044652,-151.0,0.000285,30]
[391913236,1760979044662,-151.0,0.000285,30]
[391913237,1760979044671,-151.0,0.000285,30]
[391913238,1760979044682,-536.688976,0.000285,15]
[391913239,1760979044692,-25.30813804,0.000285,15]
[391913240,1760979044717,-511.38083796,0.000285,15]
[391913241,1760979044728,-151.0,0.000285,30]
[391913242,1760979044738,-536.688976,0.000285,15]
[391913243,1760979044747,-151.0,0.000285,30]
[391913244,1760979044757,-151.0,0.000285,30]
[391913245,1760979044766,-151.0,0.000285,30]
[391913246,1760979044776,-536.688976,0.000285,15]
[391913247,1760979044785,-157.915155,0.000285,30]
[391913248,1760979044794,-151.0,0.000285,30]
[391913249,1760979044804,-151.0,0.000285,30]
[391913250,1760979044813,-151.0,0.000285,30]
[391913251,1760979044823,-248.919693,0.000285,30]
[391913252,1760979044832,-106.77000482,0.000285,30]
[391913253,1760979045479,-151.0,0.00027,7]
[391913254,1760979045544,-117.50000015,0.00027,2]
[391913258,1760979046555,4754.24753473,0.00033804,120]
[391913274,1760979047035,-1104.0,0.0002699,2]
[391913279,1760979063425,38615.5028,0.00033804,30]
[391913280,1760979069234,150.0,0.00020554,2]
[391913281,1760979069739,150.0,0.00021533,2]
[391913282,1760979070265,203.43,0.00022512,2]
[391913283,1760979071086,271.25,0.0002349,2]
[391913284,1760979073317,232.3046,0.00033804,120]
[391913285,1760979081569,200.0,0.00033804,120]
[391913334,1760979148429,200.0,0.00033804,120]
[391913351,1760979159959,200.0,0.00033804,120]
[391913354,1760979163871,150.0,0.00020526,2]
[391913355,1760979164920,158.1,0.00021504,2]
[391913356,1760979165404,237.15,0.00022481,2]
[391913357,1760979165873,316.2,0.00023459,2]
[391913358,1760979166279,200.0,0.00033804,120]
[391913371,1760979181656,200.0,0.00033804,120]
[391913373,1760979185560,-300.0,0.00024169,2]
[391913374,1760979185698,-4971.58162098,0.0002417,2]
[391913375,1760979189679,-302.55780984,0.0002417,2]
[391913376,1760979220299,-203.69683925,0.0002416,3]
[391913378,1760979245273,9000.0,0.00030137,120]
[391913380,1760979257536,150.0,0.0002053,2]
[391913381,1760979258223,150.0,0.00021508,2]
[391913382,1760979258969,204.26,0.00022486,2]
[391913383,1760979259169,272.35,0.00023463,2]
[391913384,1760979272616,1229.09192895,0.00024,3]
[391913385,1760979346860,150.0,0.00020557,2]
[391913386,1760979348284,150.0,0.00021536,2]
[391913387,1760979348795,174.61,0.00022515,2]
[391913388,1760979349317,232.81,0.00023493,2]
[391913390,1760979381791,200.0,0.00033788,120]
[391913391,1760979399919,-199.65367831,0.000241,2]
[391913392,1760979399945,-27.91607545,0.00024159,2]
[391913393,1760979402086,-270.19878931,0.00024159,2]
[391913397,1760979433351,150.0,0.00020579,2]
[391913398,1760979433851,150.0,0.00021559,2]
[391913399,1760979434346,175.76,0.00022538,2]
[391913400,1760979434801,234.35,0.00023518,2]
[391913402,1760979436224,-406.28121596,0.00024159,2]
[391913405,1760979437704,-298.9152902,0.00024159,2]
[391913431,1760979460718,-196.68862908,0.00024159,2]
[391913432,1760979460741,-5.54282782,0.00024159,2]
[391913433,1760979518034,150.0,0.00020583,2]
[391913434,1760979518434,150.0,0.00021563,2]
[391913435,1760979518904,181.15,0.00022543,2]
[391913436,1760979519412,241.53,0.00023523,2]
[391913437,1760979548262,337.6924,0.00033741,30]
[391913438,1760979599187,156.66940153,0.000241,2]
[391913439,1760979606535,150.0,0.00020585,2]
[391913440,1760979607018,150.0,0.00021565,2]
[391913441,1760979607505,183.73,0.00022545,2]
[391913442,1760979608275,244.98,0.00023526,2]
[391913443,1760979680799,200.0,0.00033741,120]
[391913444,1760979687661,150.0,0.00020507,2]
[391913445,1760979687933,150.0,0.00021484,2]
[391913446,1760979689970,161.64,0.0002246,2]
[391913447,1760979690469,215.52,0.00023437,2]
[391913448,1760979777467,150.0,0.00020484,2]
[391913449,1760979778840,150.0,0.00021459,2]
[391913450,1760979779313,150.0,0.00022434,2]
[391913451,1760979779810,188.68,0.0002341,2]
[391913452,1760979815698,158.4784229,0.00023168,2]
[391913453,1760979858293,500.0,0.00023662,10]
[391913454,1760979867065,150.0,0.00020532,2]
[391913455,1760979867573,150.0,0.0002151,2]
[391913456,1760979868202,150.0,0.00022487,2]
[391913457,1760979868514,179.07,0.00023465,2]
[391913458,1760979929057,156.66940152,0.000241,2]
[391913459,1760979952924,150.0,0.00020478,2]
[391913460,1760979953431,150.0,0.00021454,2]
[391913461,1760979953667,150.0,0.00022429,2]
[391913462,1760979955000,150.0,0.00023404,2]
[391913463,1760979980893,200.0,0.00033741,120]
[391913476,1760980038567,150.0,0.00020487,2]
[391913479,1760980040114,150.0,0.00021463,2]
[391913480,1760980040597,150.0,0.00022438,2]
[391913481,1760980041093,150.0,0.00023414,2]
[391913483,1760980042599,884.968764,0.00013699,2]
[391913485,1760980042812,884.968764,0.00020187,2]
[391913488,1760980118606,150.0,0.00020534,2]
[391913489,1760980120249,150.0,0.00021511,2]
[391913490,1760980122228,150.0,0.00022489,2]
[391913491,1760980123097,150.0,0.00023467,2]
[391913493,1760980180642,589.1020489,0.00024067,2]
[391913494,1760980198633,150.0,0.0002052,2]
[391913495,1760980199119,150.0,0.00021497,2]
[391913496,1760980199605,150.0,0.00022475,2]
[391913497,1760980201016,150.0,0.00023452,2]
[391913551,1760980231837,-909.0942158,0.00024159,3]
[391913553,1760980231846,-171.74671519,0.00024159,2]
[391913555,1760980231855,-300.0,0.00024159,2]
[391913557,1760980231865,-534.5,0.0002416,3]
[391913559,1760980231874,-267.25,0.0002416,3]
[391913561,1760980231883,-801.76,0.0002416,3]
[391913563,1760980231893,-500.0,0.00024167,2]
[391913565,1760980231903,-500.0,0.00024167,2]
[391913567,1760980231912,-500.0,0.00024167,2]
[391913569,1760980231924,-500.0,0.00024167,2]
[391913571,1760980231934,-500.0,0.00024167,2]
[391913573,1760980231943,-500.0,0.00024167,2]
[391913575,1760980231954,-388.61358503,0.00024167,2]
[391913576,1760980231964,-500.0,0.00024167,2]
[391913578,1760980231975,-500.0,0.00024167,2]
[391913580,1760980231984,-500.0,0.00024167,2]
[391913582,1760980231994,-268.0272244,0.00024167,2]
[391913584,1760980232003,-569.26244222,0.00024167,2]
[391913586,1760980232012,-500.0,0.00024167,2]
[391913588,1760980232022,-500.0,0.00024167,2]
[391913591,1760980232031,-500.0,0.00024167,2]
[391913593,1760980232040,-500.0,0.00024167,2]
[391913595,1760980232049,-500.0,0.00024167,2]
[391913597,1760980232059,-500.0,0.00024167,2]
[391913599,1760980232067,-500.0,0.00024167,2]
[391913601,1760980232077,-500.0,0.00024167,2]
[391913603,1760980232087,-500.0,0.00024167,2]
[391913605,1760980232097,-628.21701417,0.00024167,2]
[391913607,1760980232106,-169.19515439,0.00024167,2]
[391913609,1760980232115,-500.0,0.00024167,2]
[391913610,1760980232124,-500.0,0.00024167,2]
[391913612,1760980232133,-500.0,0.00024167,2]
[391913614,1760980232143,-500.0,0.00024167,2]
[391913616,1760980232152,-500.0,0.00024167,2]
[391913618,1760980232163,-500.0,0.00024167,2]
[391913620,1760980232174,-500.0,0.00024167,2]
[391913622,1760980232183,-500.0,0.00024167,2]
[391913624,1760980232192,-500.0,0.00024167,2]
[391913626,1760980232202,-500.0,0.00024167,2]
[391913628,1760980232211,-199.89378521,0.00024167,2]
[391913629,1760980232221,-500.0,0.00024167,2]
[391913632,1760980232231,-500.0,0.00024167,2]
[391913634,1760980232241,-500.0,0.00024167,2]
[391913636,1760980232250,-500.0,0.00024167,2]
[391913638,1760980232260,-500.0,0.00024167,2]
[391913639,1760980232270,-409.286877,0.00024167,2]
[391913641,1760980232279,-500.0,0.00024167,2]
[391913644,1760980232291,-12645.37882991,0.00024168,2]
[391913647,1760980232317,-29759.35685321,0.00024168,2]
[391913721,1760980237771,-4432.0,0.0002416,10]
[391913723,1760980237826,-6237.42,0.0002416,10]
[391913724,1760980237835,-7595.26431688,0.00024168,2]
[391913725,1760980237844,-362.30693711,0.00024169,2]
[391913726,1760980237853,-288.50330628,0.00024169,2]
[391913727,1760980237862,-364725.86056918,0.0002417,2]
[391913728,1760980237871,-13973.4,0.000242,7]
[391913729,1760980237881,-423.97863795,0.000242,2]
[391913730,1760980237890,-150.0,0.0002439,2]
[391913731,1760980237899,-300.0,0.00024753,20]
[391913732,1760980237908,-300.0,0.00024753,20]
[391913733,1760980237918,-300.0,0.00024753,20]
[391913734,1760980237931,-300.0,0.00024753,20]
[391913735,1760980237939,-300.0,0.00024753,20]
[391913736,1760980237949,-300.0,0.00024753,20]
[391913737,1760980237958,-300.0,0.00024753,20]
[391913738,1760980237968,-300.0,0.00024753,20]
[391913739,1760980237977,-300.0,0.00024753,20]
[391913740,1760980237988,-300.0,0.00024753,20]
[391913741,1760980237998,-300.0,0.00024753,20]
[391913742,1760980238008,-300.0,0.00024753,20]
[391913743,1760980238017,-300.0,0.00024753,20]
[391913744,1760980238028,-300.0,0.00024753,20]
[391913745,1760980238037,-300.0,0.00024753,20]
[391913746,1760980238046,-600.0,0.00024753,20]
[391913747,1760980238056,-200.0,0.00024753,10]
[391913748,1760980238065,-200.0,0.00024753,10]
[391913749,1760980238074,-200.0,0.00024753,10]
[391913750,1760980238083,-200.0,0.00024753,10]
[391913751,1760980238093,-197.50872246,0.00024759,2]
[391913752,1760980238102,-9889.00485296,0.000248,2]
[391913753,1760980238111,-2472.25121324,0.0002489,2]
[391913754,1760980238121,-92753.1134446,0.000249,2]
[391913755,1760980238130,-1236.12560662,0.0002497,2]
[391913756,1760980238140,-11594.1391806,0.0002498,2]
[391913757,1760980238149,-328.0,0.00024986,2]
[391913758,1760980238158,-25826.94662985,0.0002499,2]
[391913759,1760980238168,-406.0,0.00025254,2]
[391913760,1760980238180,-223.27072974,0.00025359,2]
[391913761,1760980238190,-150.0,0.00025423,2]
[391913762,1760980238200,-328.69610932,0.00025471,2]
[391913763,1760980238209,-1069.0,0.0002553,3]
[391913764,1760980238219,-534.5,0.0002553,3]
[391913765,1760980238228,-160.0,0.000256,2]
[391913766,1760980238238,-183.0,0.0002589,18]
[391913767,1760980238248,-249.03273702,0.00025959,2]
[391913768,1760980238258,-3000.0,0.00026,3]
[391913769,1760980238267,-589.10204884,0.00026133,2]
[391913770,1760980238276,-260.0,0.00026148,2]
[391913771,1760980238286,-572.1858429,0.00026195,2]
[391913772,1760980238295,-362.0918918,0.00026195,2]
[391913773,1760980238304,-1029.93451722,0.00026195,2]
[391913774,1760980238314,-420.0,0.00026195,2]
[391913775,1760980238324,-1830.99469729,0.00026291,2]
[391913776,1760980238334,-199.88335886,0.00026369,2]
[391913777,1760980238343,-359.79004594,0.00026369,2]
[391913778,1760980238353,-150.0,0.00026383,2]
[391913779,1760980238362,-274.7947443,0.00026559,2]
[391913780,1760980238372,-159.97751647,0.00026672,7]
[391913781,1760980238381,-884.968764,0.00026676,2]
[391913782,1760980238390,-360.0,0.00026696,2]
[391913783,1760980238400,-639.62674835,0.0002686,2]
[391913784,1760980238409,-2860.92921451,0.00026891,2]
[391913785,1760980238419,-151.0,0.00026965,7]
[391913786,1760980238430,-1236.12560662,0.0002698,2]
[391913787,1760980238440,-276.0,0.00026987,2]
[391913788,1760980238454,-11594.1391806,0.0002699,2]
[391913789,1760980238465,-190.662627,0.00027,2]
[391913790,1760980238475,-160.0,0.00027,3]
[391913791,1760980238485,-12202.09444917,0.00027,3]
[391913792,1760980238496,-151.0,0.0002702,7]
[391913793,1760980238506,-1517.0,0.00027056,2]
[391913794,1760980238516,-151.0,0.00027075,7]
[391913795,1760980238527,-151.0,0.00027129,7]
[391913796,1760980238537,-300.55675158,0.00027159,2]
[391913797,1760980238546,-157.0,0.00027184,7]
[391913798,1760980238555,-1236.12560662,0.00027198,2]
[391913799,1760980238565,-35174.2775443,0.00027208,2]
[391913800,1760980238575,-1888.4386495,0.00027208,2]
[391913801,1760980238585,-720.0,0.00027229,30]
[391913802,1760980238594,-460.0,0.00027244,2]
[391913803,1760980238604,-11594.1391806,0.00027259,2]
[391913804,1760980238613,-279.4999211,0.00027269,2]
[391913805,1760980238623,-500.0,0.00027273,2]
[391913806,1760980238632,-500.0,0.00027273,2]
[391913807,1760980238641,-500.0,0.00027273,2]
[391913808,1760980238651,-13973.4,0.000273,7]
[391913809,1760980238660,-1236.12560662,0.00027301,2]
[391913810,1760980238670,-160.0,0.00027482,2]
[391913811,1760980238680,-276.0,0.000277,7]
[391913812,1760980238689,-276.0,0.00027722,2]
[391913813,1760980238699,-326.31875885,0.00027759,2]
[391913814,1760980238708,-560.0,0.00027792,2]
[391913815,1760980238718,-151.0,0.000278,20]
[391913816,1760980238727,-500.0,0.00027821,5]
[391913817,1760980238737,-1000.0,0.00027821,5]
[391913818,1760980238746,-461.897,0.00027935,18]
[391913819,1760980238756,-20000.0,0.00028,30]
[391913820,1760980238766,-160.0,0.00028,30]
[391913821,1760980238775,-589.10204884,0.00028199,2]
[391913822,1760980238784,-11594.1391806,0.0002825,2]
[391913823,1760980238794,-660.0,0.0002834,2]
[391913824,1760980238803,-352.08076613,0.00028359,2]
[391913825,1760980238812,-1500.0,0.00028368,5]
[391913826,1760980238822,-1236.12560662,0.0002837,2]
[391913827,1760980238831,-1253.3502721,0.0002838,2]
[391913828,1760980238840,-7000.0,0.00028382,4]
[391913829,1760980238849,-587.0,0.00028402,2]